bitfinex/quotes_ETHUSD_20251213
["timestamp","ask_amount","ask_price","bid_price","bid_amount"]
[1765633162398,1.31886966,3105.0,3104.8,3.22077869]
[1765633162701,0.97666966,3104.9,3104.8,3.22077869]
[1765633162904,1.45906966,3104.9,3104.8,3.22077869]
[1765633163904,1.45906966,3104.9,3104.7,3.22287734]
[1765633164108,0.53076966,3104.8,3104.7,3.22287734]
[1765633164899,0.29946966,3104.8,3104.7,3.70237734]
[1765633165206,0.29946966,3104.8,3104.7,4.17587734]
[1765633165393,0.29946966,3104.8,3104.7,3.22287734]
[1765633165592,1.23196966,3104.8,3104.7,3.22287734]
[1765633166182,0.77366966,3104.8,3104.7,3.22287734]
[1765633166387,1.23196966,3104.8,3104.7,3.22287734]
[1765633167773,0.29946966,3104.8,3104.7,3.70237734]
[1765633169389,0.042,3105.0,3104.7,7.50377574]
[1765633169595,0.042,3105.0,3104.9,0.4795]
[1765633169796,0.3416239,3105.0,3104.9,4.28069093]
[1765633170481,0.3416239,3105.0,3104.8,3.22080293]
[1765633170482,1.2741239,3105.0,3104.8,3.22080293]
[1765633170806,0.2996239,3104.9,3104.8,3.22080293]
[1765633171008,1.2321239,3104.9,3104.8,3.22080293]
[1765633172003,1.2321239,3104.9,3104.8,0.4795]
[1765633172004,0.2996239,3104.9,3104.8,0.4795]
[1765633172300,1.2321239,3104.9,3104.7,3.22292311]
[1765633172508,0.5704239,3104.8,3104.7,3.22292311]
[1765633173893,0.2996239,3104.8,3104.7,3.22292311]
[1765633174990,0.2996239,3104.8,3104.7,3.70242311]
[1765633175187,0.2996239,3104.8,3104.7,4.17592311]
[1765633181514,0.2996239,3104.8,3104.7,4.96681659]
[1765633186821,0.2996239,3104.8,3104.7,4.49331659]
[1765633187014,0.2996239,3104.8,3104.7,4.96681659]
[1765633189120,0.042,3105.0,3104.7,8.1877397]
[1765633189315,0.042,3105.0,3104.9,0.4795]
[1765633189629,0.34187158,3105.0,3104.9,1.29827397]
[1765633189806,0.042,3105.0,3104.9,6.71219569]
[1765633190013,0.042,3105.0,3104.9,6.70927286]
[1765633190706,0.042,3105.0,3104.9,7.35477286]
[1765633190910,0.042,3105.0,3104.9,11.23477286]
[1765633191342,0.042,3105.0,3104.9,14.4554885]
[1765633192138,0.042,3105.0,3104.9,9.6249649]
[1765633192594,0.042,3105.0,3104.9,5.7449649]
[1765633192797,0.042,3105.0,3104.9,4.28069093]
[1765633193021,0.5162,3105.0,3104.9,3.80119093]
[1765633193432,0.042,3105.0,3104.9,3.80119093]
[1765633193610,0.042,3105.0,3104.9,4.28069093]
[1765633195016,0.5022,3105.0,3104.9,3.80119093]
[1765633198132,0.042,3105.0,3104.9,4.30039093]
[1765633199463,1.26011545,3105.0,3104.9,3.80119093]
[1765633199628,1.82182935,3105.0,3104.9,3.80119093]
[1765633199829,1.26011545,3105.0,3104.9,3.80119093]
[1765633200050,1.26011545,3105.0,3104.7,0.58247529]
[1765633200256,0.2847,3104.8,3104.7,0.58247529]
[1765633200556,0.58441545,3104.8,3104.7,3.22292311]
[1765633200719,1.04261545,3104.8,3104.7,3.22292311]
[1765633204243,0.58441545,3104.8,3104.7,3.22292311]
[1765633206562,0.37103102,3104.8,3104.7,3.22292311]
[1765633207953,0.82923102,3104.8,3104.7,3.22292311]
[1765633209262,0.37103102,3104.8,3104.7,3.22292311]
[1765633209466,0.29966725,3104.8,3104.7,3.72212311]
[1765633210580,0.29966725,3104.8,3104.7,4.18582311]
[1765633211179,0.042,3105.0,3104.7,13.57463587]
[1765633211479,0.042,3105.0,3104.9,0.4992]
[1765633212078,0.042,3105.0,3104.9,5.90295025]
[1765633212782,0.042,3105.0,3104.9,6.54835025]
[1765633213158,0.042,3105.0,3104.9,9.76906589]
[1765633213350,0.042,3105.0,3104.9,10.2649382]
[1765633214378,0.042,3105.0,3104.9,23.38615016]
[1765633214747,0.042,3105.0,3104.9,19.0265752]
[1765633215680,1e-08,3105.0,3104.9,30.65515016]
[1765633215977,0.001,3106.1,3105.4,24.298478]
[1765633216180,0.001,3106.1,3105.3,0.405504]
[1765633216181,0.001,3106.1,3106.0,5.63285025]
[1765633216346,0.001,3106.1,3106.0,6.14185025]
[1765633216551,0.001,3106.1,3106.0,6.60555025]
[1765633216751,0.001,3106.1,3106.0,6.73444758]
[1765633217054,0.001,3106.1,3106.0,2.37487262]
[1765633217283,0.001,3106.1,3106.0,2.87074493]
[1765633217454,0.001,3106.1,3106.0,5.59444763]
[1765633222988,0.4718,3106.1,3106.0,3.92894763]
[1765633223204,0.4718,3106.1,3106.0,4.3090503]
[1765633223205,0.9361,3106.1,3106.0,4.3090503]
[1765633229680,5.29567496,3106.1,3105.8,0.509]
[1765633229857,0.2173,3105.9,3105.8,4.30916195]
[1765633230056,0.2173,3105.9,3105.8,3.72868666]
[1765633230265,0.7024,3105.9,3105.8,0.509]
[1765633230556,0.7024,3105.9,3105.8,3.72878234]
[1765633237071,0.83636489,3105.9,3105.8,0.509]
[1765633237281,0.3301796,3105.9,3105.8,3.72878234]
[1765633237793,0.33018265,3105.9,3105.8,3.72878234]
[1765633240366,0.81528265,3105.9,3105.8,0.509]
[1765633240569,1.00118265,3105.9,3105.8,0.509]
[1765633240770,5.35863432,3105.9,3105.8,0.509]
[1765633241070,0.29878265,3105.9,3105.8,4.19748234]
[1765633243780,0.29878265,3105.9,3105.8,4.77795763]
[1765633244116,0.001,3106.1,3105.9,0.58047529]
[1765633244264,0.001,3106.1,3106.0,0.4687]
[1765633244467,0.30051818,3106.1,3106.0,0.4687]
[1765633244764,0.30051818,3106.1,3106.0,1.787674]
[1765633244765,0.001,3106.1,3106.0,1.787674]
[1765633244967,0.001,3106.1,3106.0,6.14512567]
[1765633245192,0.001,3106.1,3106.0,6.72560096]
[1765633245385,0.001,3106.1,3106.0,6.85449829]
[1765633246282,0.001,3106.1,3106.0,13.9540733]
[1765633248708,0.001,3106.1,3106.0,14.3595773]
[1765633249391,0.001,3106.1,3106.0,28.8848833]
[1765633252013,0.001,3106.1,3106.0,17.42674527]
[1765633252312,0.001,3106.1,3106.0,16.92215827]
[1765633256118,0.001,3106.8,3106.6,0.405504]
[1765633256280,0.001,3106.8,3106.7,5.37497929]
[1765633256486,0.001,3106.8,3106.7,5.96009722]
[1765633256707,0.001,3106.8,3106.7,6.88929722]
[1765633256908,0.001,3106.8,3106.7,7.01815261]
[1765633257310,0.001,3106.8,3106.7,31.84141977]
[1765633257526,0.001,3106.8,3106.7,31.06871477]
[1765633257810,0.001,3106.8,3106.7,34.28756435]
[1765633258195,0.001,3107.9,3107.0,0.98597929]
[1765633258405,0.001,3107.9,3107.3,5.62125909]
[1765633258614,0.001,3107.9,3107.3,9.97745909]
[1765633258788,0.001,3107.9,3107.3,10.43045909]
[1765633258989,0.001,3107.9,3107.3,45.03281641]
[1765633260039,0.001,3107.9,3107.3,48.25104445]
[1765633260330,0.001,3107.9,3107.3,55.09616238]
[1765633261223,0.001,3107.9,3107.3,53.79592138]
[1765633261514,0.001,3107.9,3107.3,52.83284138]
[1765633261723,0.001,3107.9,3107.3,48.55926838]
[1765633262015,0.001,3107.9,3107.3,25.60516238]
[1765633262311,0.001,3107.9,3107.3,48.07738238]
[1765633262816,0.001,3107.9,3107.3,40.72966038]
[1765633263035,0.6469,3107.9,3107.3,23.79565174]
[1765633263387,0.6469,3107.9,3107.3,20.84612574]
[1765633263592,0.1852,3107.9,3107.3,20.20582574]
[1765633263821,0.4617,3107.8,3107.3,20.61132974]
[1765633264021,0.4617,3107.8,3107.3,14.23132974]
[1765633265111,0.001,3107.9,3107.3,18.58486238]
[1765633265292,0.001,3107.9,3107.3,19.03786238]
[1765633266526,0.1852,3107.9,3107.3,14.68432974]
[1765633266890,0.001,3107.9,3107.3,19.03786238]
[1765633267091,0.001,3107.9,3107.3,24.76799138]
[1765633267896,0.001,3107.9,3107.3,19.03786238]
[1765633268222,0.001,3107.9,3107.3,34.85570238]
[1765633269025,0.001,3107.9,3107.3,41.38781738]
[1765633269327,0.001,3107.9,3107.3,37.02797038]
[1765633269525,0.001,3107.9,3107.3,36.70607438]
[1765633269721,0.001,3107.9,3107.3,24.16579138]
[1765633269926,0.001,3107.9,3107.3,21.44391338]
[1765633270127,0.001,3107.9,3107.3,22.23074838]
[1765633270325,0.001,3107.9,3107.3,18.58486238]
[1765633270326,0.1852,3107.9,3107.3,18.58486238]
[1765633270532,0.4617,3107.8,3107.3,16.61025874]
[1765633270903,0.4617,3107.8,3107.3,20.96379138]
[1765633271136,0.4617,3107.8,3107.3,19.03786238]
[1765633271333,0.4617,3107.8,3107.3,17.06325874]
[1765633271535,0.4885,3107.4,3107.3,8.41561781]
[1765633271726,0.9502,3107.4,3107.3,13.17465445]
[1765633272103,0.9502,3107.4,3107.3,13.75512974]
[1765633272614,0.9502,3107.4,3107.3,13.75194211]
[1765633272831,0.9502,3107.4,3107.3,13.24294211]
[1765633273036,0.9502,3107.4,3107.3,13.75194211]
[1765633273903,0.9502,3107.4,3107.3,9.4015971]
[1765633274905,0.9502,3107.4,3107.3,8.31652801]
[1765633276017,0.9502,3107.4,3107.3,4.43652801]
[1765633278324,0.4885,3107.4,3107.3,4.43652801]
[1765633279910,0.001,3107.4,3107.3,5.00717517]
[1765633280419,0.001,3107.4,3107.3,5.46017517]
[1765633280618,0.001,3107.4,3107.3,5.00717517]
[1765633281737,0.001,3107.4,3107.3,5.03935745]
[1765633281935,0.001,3107.4,3107.3,5.00717517]
[1765633282540,0.9699,3107.4,3107.3,4.43652801]
[1765633284123,0.9699,3107.4,3107.3,4.30770333]
[1765633284439,0.4831,3107.4,3107.3,4.30770333]
[1765633285922,0.4831,3107.4,3107.3,8.18770333]
[1765633289026,0.001,3107.4,3107.3,8.64730333]
[1765633294453,0.4981,3107.4,3107.3,8.18770333]
[1765633294853,0.4981,3107.4,3107.3,8.13770333]
[1765633295841,0.9944,3107.4,3107.3,8.13770333]
[1765633296235,0.4981,3107.4,3107.3,8.13770333]
[1765633296856,0.9944,3107.4,3107.3,8.13770333]
[1765633300853,0.4981,3107.4,3107.3,8.13770333]
[1765633303543,0.001,3107.4,3107.3,8.59730333]
[1765633305250,0.4981,3107.4,3107.3,8.13770333]
[1765633305446,0.9944,3107.4,3107.3,8.13770333]
[1765633307266,0.4981,3107.4,3107.3,8.13770333]
[1765633308049,0.4981,3107.4,3107.3,7.62870333]
[1765633308244,0.9944,3107.4,3107.3,8.13770333]
[1765633309368,0.9944,3107.4,3107.3,7.55722804]
[1765633309568,1.29443033,3107.4,3107.3,3.67722804]
[1765633309868,1.29443033,3107.4,3107.3,4.25770333]
[1765633313544,0.79813033,3107.4,3107.3,4.25770333]
[1765633314174,1.29443033,3107.4,3107.3,4.25770333]
[1765633314571,1.29208862,3107.4,3107.3,4.25770333]
[1765633315350,0.99205829,3107.4,3107.3,4.25770333]
[1765633315683,0.49575829,3107.4,3107.3,4.25770333]
[1765633315886,0.4518,3107.7,3107.3,7.47593137]
[1765633316114,0.29954434,3107.6,3107.3,7.47593137]
[1765633316369,0.29954434,3107.5,3107.3,7.47593137]
[1765633316556,0.4518,3107.7,3107.3,7.47593137]
[1765633316742,0.29953822,3107.6,3107.3,7.47593137]
[1765633316946,0.29953822,3107.5,3107.3,7.47593137]
[1765633317147,0.4508,3107.6,3107.3,7.47593137]
[1765633317348,0.29962433,3107.5,3107.3,7.47593137]
[1765633317543,0.4508,3107.6,3107.3,7.47593137]
[1765633317748,0.29960667,3107.5,3107.3,7.47593137]
[1765633317949,0.4826,3107.4,3107.3,4.25770333]
[1765633318367,0.4508,3107.6,3107.3,7.47593137]
[1765633318567,0.29959704,3107.5,3107.3,11.35593137]
[1765633318871,0.4508,3107.6,3107.3,11.35593137]
[1765633319077,0.29959704,3107.5,3107.3,11.80923137]
[1765633319277,0.001,3107.7,3107.3,11.35593137]
[1765633319480,0.29960315,3107.6,3107.4,0.4533]
[1765633319657,0.29960315,3107.5,3107.3,11.35593137]
[1765633319852,0.001,3107.7,3107.3,11.35593137]
[1765633320077,0.29960311,3107.6,3107.3,11.35593137]
[1765633320279,0.29960311,3107.5,3107.3,11.35593137]
[1765633320572,0.4518,3107.7,3107.3,11.35593137]
[1765633320749,0.29959589,3107.6,3107.5,3.21802091]
[1765633321151,1.23299589,3107.6,3107.5,3.21802091]
[1765633321981,0.001,3107.7,3107.5,3.21802091]
[1765633321982,0.001,3107.7,3107.6,0.58047529]
[1765633322281,0.001,3107.7,3107.6,1.04297529]
[1765633322481,0.001,3107.7,3107.6,1.49627529]
[1765633322688,0.001,3107.7,3107.6,4.71419265]
[1765633324291,0.001,3107.7,3107.6,4.26089265]
[1765633324464,0.001,3107.7,3107.6,8.14089265]
[1765633324671,0.4836,3107.7,3107.6,7.67839265]
[1765633326289,0.4836,3107.7,3107.6,8.18739265]
[1765633329870,0.001,3107.7,3107.6,8.18739265]
[1765633330899,0.9344,3107.7,3107.6,8.18739265]
[1765633332894,0.001,3107.7,3107.6,8.64989265]
[1765633333094,0.001,3107.7,3107.6,13.00182772]
[1765633333398,0.001,3107.7,3107.6,13.45512772]
[1765633334094,0.001,3107.7,3107.6,8.64989265]
[1765633334903,0.001,3107.7,3107.6,13.00182772]
[1765633338879,0.4836,3107.7,3107.6,12.53932772]
[1765633339280,1.23393085,3107.7,3107.6,8.18739265]
[1765633339804,0.9344,3107.7,3107.6,8.18739265]
[1765633342506,1.23398983,3107.7,3107.6,8.18739265]
[1765633343308,0.9344,3107.7,3107.6,8.18739265]
[1765633343482,1.23402314,3107.7,3107.6,8.18739265]
[1765633345812,1.23402314,3107.7,3107.6,9.15370849]
[1765633350114,0.78322314,3107.7,3107.6,9.15370849]
[1765633350503,0.30062314,3107.7,3107.6,9.63250849]
[1765633352224,1.25312314,3107.7,3107.6,9.15370849]
[1765633352387,1.25312314,3107.7,3107.6,8.64470849]
[1765633352583,1.25312314,3107.7,3107.6,9.15370849]
[1765633353596,0.30062314,3107.7,3107.6,9.63250849]
[1765633353800,0.30062314,3107.7,3107.6,10.91756143]
[1765633354118,0.30062314,3107.7,3107.6,11.01200859]
[1765633357498,0.30062314,3107.7,3107.6,11.48220859]
[1765633359104,0.30062314,3107.7,3107.6,11.01200859]
[1765633359309,0.30062314,3107.7,3107.6,15.83274525]
[1765633361035,0.30062314,3107.7,3107.6,11.01200859]
[1765633361603,0.001,3107.7,3107.6,15.36254525]
[1765633361802,0.001,3107.7,3107.6,15.83274525]
[1765633369139,0.001,3107.7,3107.6,15.36254525]
[1765633374347,0.4625,3107.7,3107.6,14.78929809]
[1765633374537,0.9535,3107.7,3107.6,9.15370849]
[1765633374738,1.25324743,3107.7,3107.6,9.15370849]
[1765633376250,0.76224743,3107.7,3107.6,9.15370849]
[1765633377940,0.30074743,3107.7,3107.6,9.64090849]
[1765633378141,0.30074743,3107.7,3107.6,10.20625565]
[1765633378339,0.001,3107.7,3107.6,11.54868331]
[1765633385733,0.001,3107.7,3107.6,15.8982644]
[1765633386833,0.001,3107.7,3107.6,11.07778331]
[1765633387159,0.4935,3107.7,3107.6,9.98713615]
[1765633387457,0.4935,3107.7,3107.6,9.15370849]
[1765633387458,1.25605324,3107.7,3107.6,9.15370849]
[1765633392155,1.25605324,3107.7,3107.6,9.24815565]
[1765633392156,0.30085324,3107.7,3107.6,9.24815565]
[1765633392363,0.30085324,3107.7,3107.6,10.20625565]
[1765633392654,0.001,3107.7,3107.6,11.54868331]
[1765633406373,0.001,3107.7,3107.6,11.07778331]
[1765633407970,0.9826,3107.7,3107.6,10.08158331]
[1765633408274,0.9826,3107.7,3107.6,9.24715565]
[1765633408646,0.4928,3107.7,3107.6,9.24715565]
[1765633411665,0.9826,3107.7,3107.6,9.24715565]
[1765633414863,0.4928,3107.7,3107.6,8.73915565]
[1765633415068,0.4928,3107.7,3107.6,9.24715565]
[1765633415377,0.9826,3107.7,3107.6,9.24715565]
[1765633416875,0.9826,3107.7,3107.6,8.73915565]
[1765633417081,0.9826,3107.7,3107.6,9.24715565]
[1765633419965,0.9826,3107.7,3107.6,9.15270849]
[1765633428363,1.28265848,3107.7,3107.6,9.15270849]
[1765633438104,0.79285848,3107.7,3107.6,8.64470849]
[1765633438306,1.26275848,3107.7,3107.6,9.15270849]
[1765633440392,1.26275848,3107.7,3107.6,5.27270849]
[1765633444302,1.26275848,3107.7,3107.6,4.76470849]
[1765633444610,1.26275848,3107.7,3107.6,5.27270849]
[1765633444784,1.26275848,3107.7,3107.6,2.05479113]
[1765633444985,1.26275848,3107.7,3107.6,5.27270849]
[1765633445333,1.26275848,3107.7,3107.6,1.47431584]
[1765633445608,1.8437524,3107.7,3107.6,0.508]
[1765633454891,1.26275848,3107.7,3107.6,0.508]
[1765633462318,0.30105848,3107.7,3107.6,4.64781736]
[1765633462520,0.001,3107.7,3107.6,5.32273981]
[1765633462693,0.001,3107.7,3107.6,6.28893116]
[1765633467121,0.001,3107.7,3107.6,10.16893116]
[1765633472709,0.001,3107.7,3107.6,9.098384]
[1765633472914,0.9689,3107.7,3107.6,3.79839265]
[1765633473117,0.9689,3107.7,3107.6,4.30639265]
[1765633478111,0.4849,3107.7,3107.6,4.30639265]
[1765633479834,0.001,3107.7,3107.6,4.30639265]
[1765633481637,0.001,3107.7,3107.6,4.76439265]
[1765633482337,0.001,3107.7,3107.6,5.21849265]
[1765633482537,0.001,3107.7,3107.6,5.34733393]
[1765633482734,0.001,3107.7,3107.6,4.89323393]
[1765633484843,0.001,3107.7,3107.6,8.77323393]
[1765633486147,0.001,3107.7,3107.6,9.22733393]
[1765633490369,0.001,3107.7,3107.6,8.77323393]
[1765633490644,0.001,3107.7,3107.6,9.22733393]
[1765633490826,0.001,3107.7,3107.6,13.57790422]
[1765633492133,0.001,3107.7,3107.6,9.22733393]
[1765633492337,0.64216265,3107.7,3107.6,8.31523393]
[1765633492720,1.12616265,3107.7,3107.6,8.31523393]
[1765633495644,0.64216265,3107.7,3107.6,8.31523393]
[1765633496045,1.12636265,3107.7,3107.6,8.31523393]
[1765633496339,0.30076265,3107.7,3107.6,8.81453393]
[1765633496543,0.30076265,3107.7,3107.6,10.51198939]
[1765633497729,1.27516265,3107.7,3107.6,8.31523393]
[1765633500146,0.79096265,3107.7,3107.6,7.80723393]
[1765633500349,1.27516265,3107.7,3107.6,8.31523393]
[1765633501517,1.27516265,3107.7,3107.6,8.18639265]
[1765633501726,1.27516265,3107.7,3107.6,0.58047529]
[1765633501945,1.27516265,3107.7,3107.5,0.508]
[1765633502154,0.78396265,3107.6,3107.5,0.508]
[1765633502322,1.27416265,3107.6,3107.5,0.508]
[1765633503051,1.27416265,3107.6,3107.5,3.72602091]
[1765633505749,0.78996265,3107.6,3107.5,3.72602091]
[1765633508127,0.29976265,3107.6,3107.5,4.22532091]
[1765633508649,0.78996265,3107.6,3107.5,3.72602091]
[1765633508827,1.27416265,3107.6,3107.5,3.72602091]
[1765633509256,0.78996265,3107.6,3107.5,3.72602091]
[1765633509450,0.29976265,3107.6,3107.5,4.22532091]
[1765633509750,0.29976265,3107.6,3107.5,4.71952091]
[1765633510650,0.29976265,3107.6,3107.5,5.2999962]
[1765633510851,0.001,3107.7,3107.5,6.72478069]
[1765633511052,0.001,3107.7,3107.6,0.4993]
[1765633511257,0.30027129,3107.7,3107.6,0.4993]
[1765633511452,0.30027129,3107.7,3107.6,0.9935]
[1765633511662,0.30027129,3107.7,3107.6,4.8735]
[1765633512159,0.79047129,3107.7,3107.6,3.88]
[1765633512354,1.27467129,3107.7,3107.6,3.88]
[1765633512532,0.79047129,3107.7,3107.6,3.88]
[1765633512961,0.79047129,3107.7,3107.6,7.09791736]
[1765633514556,0.79047129,3107.7,3107.6,3.21791736]
[1765633515664,1.27467129,3107.7,3107.6,3.21791736]
[1765633517136,1.27467129,3107.7,3107.6,3.72591736]
[1765633517566,1.27467129,3107.7,3107.6,7.60591736]
[1765633519136,0.79047129,3107.7,3107.6,7.60591736]
[1765633520658,0.30027129,3107.7,3107.6,8.10521736]
[1765633520963,0.30027129,3107.7,3107.6,8.59941736]
[1765633521267,0.30027129,3107.7,3107.6,8.89968865]
[1765633522774,0.30027129,3107.7,3107.6,9.48016394]
[1765633523074,0.001,3107.7,3107.6,9.48016394]
[1765633524845,0.001,3107.7,3107.6,13.83028436]
[1765633527673,0.001,3107.7,3107.6,8.48666394]
[1765633528076,0.001,3107.7,3107.6,8.96366394]
[1765633532783,0.483,3107.7,3107.6,8.48666394]
[1765633533153,0.001,3107.7,3107.6,8.48666394]
[1765633533384,0.001,3107.7,3107.6,8.96366394]
[1765633534082,0.001,3107.7,3107.6,9.42016394]
[1765633534674,0.001,3107.7,3107.6,13.77028436]
[1765633541298,0.001,3107.7,3107.6,13.86473152]
[1765633548290,0.001,3107.7,3107.6,8.96366394]
[1765633548622,0.483,3107.7,3107.6,8.48666394]
[1765633552291,0.78253069,3107.7,3107.6,8.48666394]
[1765633554213,1.27633069,3107.7,3107.6,8.48666394]
[1765633555646,0.30053069,3107.7,3107.6,8.96366394]
[1765633555814,0.30053069,3107.7,3107.6,9.42406394]
[1765633557954,0.30053069,3107.7,3107.6,13.7737719]
[1765633561037,0.001,3107.7,3107.6,13.7737719]
[1765633561222,0.30066822,3107.7,3107.6,13.7737719]
[1765633562213,0.30066822,3107.7,3107.6,9.42406394]
[1765633562530,0.77056822,3107.7,3107.6,8.48666394]
[1765633562737,1.23816822,3107.7,3107.6,8.48666394]
[1765633563900,0.77056822,3107.7,3107.6,8.48666394]
[1765633566508,1.23816822,3107.7,3107.6,8.48666394]
[1765633566923,1.23816822,3107.7,3107.6,8.18639265]
[1765633567453,0.30066822,3107.7,3107.6,13.11404777]
[1765633567739,0.30066822,3107.7,3107.6,13.57444777]
[1765633567930,0.001,3107.7,3107.6,13.87511599]
[1765633574755,0.001,3107.7,3107.6,13.72577283]
[1765633574936,0.001,3107.7,3107.6,13.82021999]
[1765633575139,0.001,3107.7,3107.6,14.28061999]
[1765633576552,0.001,3107.7,3107.6,18.63032795]
[1765633576957,0.001,3107.7,3107.6,14.28061999]
[1765633577468,0.001,3107.7,3107.6,18.63032795]
[1765633581267,0.001,3107.7,3107.6,25.04613395]
[1765633585391,0.001,3107.7,3107.6,48.63032795]
[1765633585877,0.001,3107.9,3107.8,13.504543]
[1765633586076,0.001,3107.9,3107.8,20.47102321]
[1765633586252,0.001,3107.9,3107.8,20.92892321]
[1765633587054,0.001,3107.9,3107.8,21.05772341]
[1765633587284,0.001,3107.9,3107.8,24.27543368]
[1765633592191,0.001,3107.9,3107.8,24.68093768]
[1765633593707,0.001,3107.9,3107.8,24.6749987]
[1765633594978,0.001,3107.9,3107.8,24.2170987]
[1765633595532,0.001,3107.9,3107.8,17.36921423]
[1765633595718,1.0042,3107.9,3107.8,12.08024894]
[1765633596013,1.0042,3107.9,3107.8,3.85451047]
[1765633596507,1.0042,3107.9,3107.8,4.43498576]
[1765633599290,1.30305469,3107.9,3107.8,4.43498576]
[1765633601505,1.30293658,3107.9,3107.8,4.43498576]
[1765633604007,1.30293658,3107.9,3107.8,3.85451047]
[1765633604323,1.0042,3107.9,3107.8,3.85451047]
[1765633604687,1.3027916,3107.9,3107.8,3.85451047]
[1765633605620,1.3027916,3107.9,3107.8,0.6368002]
[1765633605820,1.3027916,3107.9,3107.8,3.85451047]
[1765633607388,1.0042,3107.9,3107.8,3.85451047]
[1765633608735,1.30263639,3107.9,3107.8,0.1288002]
[1765633608888,1.86777388,3107.9,3107.5,3.72598687]
[1765633609094,0.77503639,3107.8,3107.5,3.72598687]
[1765633609410,0.4797,3107.6,3107.5,3.72598687]
[1765633609788,0.9563,3107.6,3107.5,0.508]
[1765633610031,0.9563,3107.6,3107.5,3.72602091]
[1765633610736,0.9563,3107.6,3107.5,0.508]
[1765633613620,0.9563,3107.6,3107.5,3.72602091]
[1765633615247,0.9563,3107.6,3107.5,0.508]
[1765633615939,0.9563,3107.6,3107.5,3.72602091]
[1765633620445,0.9563,3107.6,3107.5,0.508]
[1765633621332,0.9563,3107.6,3107.5,3.72602091]
[1765633621634,0.9563,3107.6,3107.5,0.508]
[1765633621841,0.9563,3107.6,3107.5,3.72602091]
[1765633622256,1.25478956,3107.6,3107.5,3.72602091]
[1765633622554,1.25478956,3107.6,3107.5,0.508]
[1765633624925,1.25478956,3107.6,3107.2,1.47453688]
[1765633625138,1.25478956,3107.6,3106.9,3.879]
[1765633625139,0.4984,3107.3,3107.0,0.58047529]
[1765633625340,0.29848956,3107.2,3107.1,3.21840132]
[1765633625842,0.76098956,3107.2,3107.1,3.21840132]
[1765633626048,1.25938956,3107.2,3107.1,3.21840132]
[1765633626443,1.25938956,3107.2,3106.8,1.47463031]
[1765633626626,3.21792554,3107.6,3106.8,3.72670255]
[1765633626627,0.6934,3106.9,3106.8,3.72670255]
[1765633626951,0.99188956,3106.9,3106.8,0.508]
[1765633627123,1.45438956,3106.9,3106.8,0.508]
[1765633629728,1.45438956,3106.9,3106.5,0.58047529]
[1765633629946,0.4984,3106.6,3106.5,4.3075321]
[1765633630144,0.79704238,3106.6,3106.5,0.508]
[1765633630348,1.25954238,3106.6,3106.5,0.508]
[1765633630850,1.25954238,3106.6,3106.4,0.002]
[1765633631050,0.93694238,3106.5,3106.4,0.002]
[1765633631254,1.35252419,3106.5,3106.4,0.002]
[1765633631435,0.93694238,3106.5,3106.4,0.002]
[1765633633350,0.6383,3106.5,3106.4,0.002]
[1765633633539,0.93640874,3106.5,3106.4,0.002]
[1765633637725,0.76298956,3106.8,3106.4,0.4549]
[1765633637955,0.29790826,3106.7,3106.5,0.9889]
[1765633638155,0.6575,3106.9,3106.5,0.508]
[1765633638360,0.29794234,3106.8,3106.5,0.508]
[1765633638662,0.29794234,3106.7,3106.5,0.508]
[1765633638870,0.4625,3106.8,3106.5,0.508]
[1765633639032,0.29797827,3106.7,3106.6,3.21895319]
[1765633639433,0.79637827,3106.7,3106.6,3.21895319]
[1765633640665,0.4625,3107.2,3106.6,7.37170638]
[1765633640855,0.2979919,3107.1,3106.7,0.4529]
[1765633641061,0.2979919,3107.0,3106.8,3.21874597]
[1765633641362,0.2979919,3106.9,3106.8,3.21874597]
[1765633641575,0.9442919,3106.9,3106.7,3.21880849]
[1765633641758,0.685,3106.8,3106.7,3.21880849]
[1765633643246,0.98302313,3106.8,3106.6,3.21895319]
[1765633643473,0.1935,3106.9,3106.6,3.21895319]
[1765633643474,0.4761,3106.7,3106.6,3.21895319]
[1765633643659,0.9289,3106.7,3106.6,3.21895319]
[1765633643856,0.9289,3106.7,3106.5,3.72701385]
[1765633644058,0.685,3106.6,3106.5,3.72701385]
[1765633649672,0.50728227,3106.6,3106.5,3.72701385]
[1765633649881,0.99608227,3106.6,3106.5,3.72701385]
[1765633650975,0.99609869,3106.6,3106.5,0.508]
[1765633652080,0.99609869,3106.6,3106.5,3.72705681]
[1765633653176,0.29839869,3106.6,3106.5,4.18455681]
[1765633654469,0.76969869,3106.6,3106.5,3.72705681]
[1765633655179,0.29839869,3106.6,3106.5,4.18455681]
[1765633655358,0.29839869,3106.6,3106.5,3.72705681]
[1765633655678,0.29839869,3106.6,3106.5,4.67885681]
[1765633655879,0.29898432,3106.6,3106.5,4.67885681]
[1765633657078,0.29898432,3106.6,3106.5,4.18455681]
[1765633657485,0.29898432,3106.6,3106.5,5.85481014]
[1765633662482,0.29898432,3106.6,3106.5,4.67885681]
[1765633665084,0.29898432,3106.6,3106.5,9.03189831]
[1765633665872,0.29898432,3106.6,3106.5,8.53759831]
[1765633666359,0.77028432,3106.6,3106.5,7.57209831]
[1765633666559,1.25908432,3106.6,3106.5,8.08009831]
[1765633667689,0.77028432,3106.6,3106.5,3.72705681]
[1765633667894,0.29898432,3106.6,3106.5,4.18455681]
[1765633671699,0.29898432,3106.6,3106.5,9.03189831]
[1765633674708,0.29898432,3106.6,3106.5,8.53759831]
[1765633676099,0.79868432,3106.6,3106.5,8.08009831]
[1765633677108,0.29898432,3106.6,3106.5,8.08009831]
[1765633678002,0.29898432,3106.6,3106.5,8.53119831]
[1765633679910,0.29898432,3106.6,3106.5,8.53136309]
[1765633681809,0.29898432,3106.6,3106.5,9.02966309]
[1765633683794,0.79868432,3106.6,3106.5,8.08026309]
[1765633684085,0.29898432,3106.6,3106.5,8.53136309]
[1765633688414,0.29898432,3106.6,3106.5,9.02966309]
[1765633690208,0.29898432,3106.6,3106.5,8.53136309]
[1765633690918,0.29898432,3106.6,3106.5,9.02966309]
[1765633691820,0.29898432,3106.6,3106.5,13.96334466]
[1765633692114,0.4828,3107.5,3106.6,0.58047529]
[1765633692311,3.26553883,3107.9,3107.1,7.5715421]
[1765633692312,0.2995642,3107.4,3107.1,7.5715421]
[1765633692512,0.4997,3107.2,3107.1,7.5715421]
[1765633692719,0.7992642,3107.2,3107.1,8.0795421]